bitfinex/quotes_BTCUSD_20250205
["timestamp","ask_amount","ask_price","bid_price","bid_amount"]
[1738734581407,0.0001068,97922.0,97921.0,0.23005809]
[1738734591522,0.0001068,97922.0,97921.0,0.23028237]
[1738734596651,0.0001068,97922.0,97921.0,0.12789731]
[1738734607858,0.0001068,97922.0,97921.0,0.00535031]
[1738734608372,0.0001068,97922.0,97921.0,0.00022428]
[1738734610393,0.0001068,97922.0,97921.0,0.00506265]
[1738734610655,0.0001068,97922.0,97921.0,0.00022428]
[1738734610850,0.0001068,97922.0,97921.0,0.00506265]
[1738734611062,0.0001068,97922.0,97921.0,0.00022428]
[1738734611291,0.0001068,97922.0,97921.0,0.00506265]
[1738734612198,0.1226528,97922.0,97921.0,0.00506265]
[1738734612429,0.2953222,97922.0,97921.0,0.00022428]
[1738734612662,0.2513528,97922.0,97921.0,0.00022428]
[1738734612970,0.35373786,97922.0,97921.0,0.00022428]
[1738734613426,0.36414018,97922.0,97921.0,0.00022428]
[1738734613640,0.79589514,97922.0,97921.0,0.00022428]
[1738734614319,0.79689514,97922.0,97921.0,0.00022428]
[1738734614780,0.69340042,97922.0,97921.0,0.00022428]
[1738734615018,0.69240042,97922.0,97921.0,0.00022428]
[1738734615235,0.69640042,97922.0,97921.0,0.00022428]
[1738734615722,0.69340042,97922.0,97921.0,0.00022428]
[1738734615927,0.69840042,97922.0,97921.0,0.00022428]
[1738734616682,0.80089514,97922.0,97921.0,0.00022428]
[1738734616911,0.69840042,97922.0,97921.0,0.00022428]
[1738734619184,0.59601536,97922.0,97921.0,0.00022428]
[1738734622495,0.46306704,97922.0,97921.0,0.00022428]
[1738734622698,0.38116704,97922.0,97921.0,0.00022428]
[1738734622899,0.33436704,97922.0,97921.0,0.00022428]
[1738734623053,0.33436704,97922.0,97921.0,0.00507409]
[1738734623260,0.33436704,97922.0,97921.0,0.00022428]
[1738734623496,0.33436704,97922.0,97921.0,0.00507409]
[1738734623674,0.33436704,97922.0,97921.0,0.00022428]
[1738734623845,0.33436704,97922.0,97921.0,0.0050758]
[1738734625700,0.32936704,97922.0,97921.0,0.0050758]
[1738734625874,0.45716704,97922.0,97921.0,0.00022428]
[1738734628303,0.45816704,97922.0,97921.0,0.00022428]
[1738734628511,0.45716704,97922.0,97921.0,0.00022428]
[1738734628815,0.45816704,97922.0,97921.0,0.00022428]
[1738734629738,0.45716704,97922.0,97921.0,0.00022428]
[1738734631206,0.45816704,97922.0,97921.0,0.00022428]
[1738734631527,0.45716704,97922.0,97921.0,0.00022428]
[1738734631748,0.45816704,97922.0,97921.0,0.00022428]
[1738734632149,0.45716704,97922.0,97921.0,0.00022428]
[1738734632344,0.45816704,97922.0,97921.0,0.00022428]
[1738734637134,0.32936704,97922.0,97921.0,0.00022428]
[1738734640286,0.0011068,97922.0,97921.0,0.0059431]
[1738734641254,0.0001068,97922.0,97921.0,0.0059431]
[1738734641464,0.0011068,97922.0,97921.0,0.0059431]
[1738734644196,0.0001068,97922.0,97921.0,0.0059431]
[1738734649072,0.0001068,97922.0,97921.0,0.25832816]
[1738734652204,0.0001068,97922.0,97921.0,0.33732816]
[1738734655149,0.0001068,97922.0,97921.0,0.35778325]
[1738734656770,0.0001068,97922.0,97921.0,0.27878325]
[1738734660466,0.0001068,97922.0,97921.0,0.10832816]
[1738734660668,0.0001068,97922.0,97921.0,0.0059431]
[1738734661082,0.0001068,97922.0,97921.0,0.00022428]
[1738734661428,0.0001068,97922.0,97921.0,0.00592836]
[1738734670079,0.31642245,97930.0,97921.0,0.00592836]
[1738734670279,0.31642245,97930.0,97928.0,0.122538]
[1738734670912,0.31642245,97930.0,97929.0,0.00570005]
[1738734671442,0.31642245,97930.0,97923.0,0.163393]
[1738734671645,0.31642245,97930.0,97929.0,0.00570011]
[1738734671784,0.0799,97929.0,97921.0,0.00022428]
[1738734671988,0.0799,97929.0,97925.0,0.122542]
[1738734672455,0.0799,97929.0,97922.0,0.163394]
[1738734672657,0.0799,97929.0,97927.0,0.12254]
[1738734672858,0.0799,97929.0,97926.0,0.12254]
[1738734673816,0.0799,97929.0,97921.0,0.00022428]
[1738734673817,0.0799,97929.0,97927.0,0.122539]
[1738734674455,0.31642245,97930.0,97929.0,0.122537]
[1738734674855,0.31642245,97930.0,97926.0,0.163387]
[1738734675080,0.31642245,97930.0,97927.0,0.122539]
[1738734675460,0.31642245,97930.0,97926.0,0.12254]
[1738734675655,0.31642245,97930.0,97927.0,0.122539]
[1738734676634,0.31642245,97930.0,97928.0,0.122538]
[1738734676840,0.31642245,97930.0,97928.0,0.12823872]
[1738734677587,0.31642245,97930.0,97928.0,0.00570072]
[1738734677960,0.31642245,97930.0,97927.0,0.122539]
[1738734678160,0.31642245,97930.0,97929.0,0.00570009]
[1738734678357,0.31642245,97930.0,97928.0,0.00570072]
[1738734678574,0.31642245,97930.0,97929.0,0.00570009]
[1738734678899,0.31642245,97930.0,97927.0,0.122539]
[1738734679056,0.31642245,97930.0,97929.0,0.00570009]
[1738734679261,0.31642245,97930.0,97928.0,0.122538]
[1738734679459,0.31642245,97930.0,97929.0,0.00570009]
[1738734679722,0.31642245,97930.0,97928.0,0.122538]
[1738734679856,0.31642245,97930.0,97929.0,0.00570009]
[1738734680062,0.31642245,97930.0,97928.0,0.122538]
[1738734680300,0.31642245,97930.0,97929.0,0.00570009]
[1738734680677,0.31642245,97930.0,97926.0,0.12254]
[1738734680930,0.31642245,97930.0,97927.0,0.00570136]
[1738734681351,0.31642245,97930.0,97926.0,0.12254]
[1738734681547,0.31642245,97930.0,97928.0,0.00570072]
[1738734681753,0.31642245,97930.0,97927.0,0.12824036]
[1738734681975,0.31642245,97930.0,97929.0,0.00570009]
[1738734682195,0.31642245,97930.0,97928.0,0.00570072]
[1738734682412,0.31642245,97930.0,97929.0,0.00570009]
[1738734682807,0.31642245,97930.0,97928.0,0.122538]
[1738734683023,0.31642245,97930.0,97929.0,0.00570009]
[1738734683325,0.31642245,97930.0,97928.0,0.122538]
[1738734683495,0.31642245,97930.0,97929.0,0.00570009]
[1738734683925,0.31642245,97930.0,97925.0,0.163389]
[1738734684102,0.31642245,97930.0,97929.0,0.00570009]
[1738734684305,0.31642245,97930.0,97926.0,0.122541]
[1738734684509,0.31642245,97930.0,97929.0,0.00570009]
[1738734684708,0.31642245,97930.0,97925.0,0.122541]
[1738734684912,0.31642245,97930.0,97929.0,0.00570009]
[1738734685065,0.31642245,97930.0,97927.0,0.00022428]
[1738734685267,0.31652925,97930.0,97928.0,0.00570072]
[1738734686395,0.31652925,97930.0,97927.0,0.00022428]
[1738734686593,0.31652925,97930.0,97929.0,0.00570009]
[1738734686827,0.31652925,97930.0,97927.0,0.00022428]
[1738734687057,0.31652925,97930.0,97929.0,0.00570006]
[1738734687588,0.31652925,97930.0,97927.0,0.00022428]
[1738734687781,0.31652925,97930.0,97929.0,0.00570006]
[1738734687961,0.31652925,97930.0,97928.0,0.00570069]
[1738734688141,0.31652925,97930.0,97927.0,0.00022428]
[1738734688142,0.31652925,97930.0,97929.0,0.00570006]
[1738734688552,0.31652925,97930.0,97928.0,0.122538]
[1738734688749,0.31652925,97930.0,97929.0,0.00570005]
[1738734689560,0.31652925,97930.0,97927.0,0.00022428]
[1738734689979,0.31652925,97930.0,97928.0,0.00570068]
[1738734690129,0.31652925,97930.0,97928.0,0.02482431]
[1738734691177,0.31652925,97930.0,97928.0,0.14736231]
[1738734691642,0.31652925,97930.0,97929.0,0.01912363]
[1738734692016,0.31652925,97930.0,97929.0,0.02482368]
[1738734693513,0.31652925,97930.0,97929.0,0.05543219]
[1738734694843,0.31652925,97930.0,97929.0,0.02482368]
[1738734697414,0.31652925,97930.0,97929.0,0.05542514]
[1738734697606,0.31652925,97930.0,97929.0,0.05564942]
[1738734698610,0.0001068,97930.0,97929.0,0.15803448]
[1738734699454,0.0001068,97930.0,97929.0,0.30803448]
[1738734699864,0.0001068,97930.0,97929.0,0.3386296]
[1738734701365,0.0001068,97930.0,97929.0,0.30803448]
[1738734704110,0.0001068,97930.0,97929.0,0.35783448]
[1738734706399,0.0001068,97957.0,97930.0,0.15]
[1738734706596,0.0001068,97957.0,97931.0,0.10238506]
[1738734706798,0.0001068,97957.0,97933.0,0.15]
[1738734707004,0.0001068,97957.0,97955.0,0.122504]
[1738734707320,0.0001068,97957.0,97956.0,0.00568186]
[1738734707671,0.0001068,97957.0,97955.0,0.122504]
[1738734707851,0.0001068,97957.0,97956.0,0.00568186]
[1738734708206,0.0001068,97957.0,97956.0,0.04972509]
[1738734708453,0.0001068,97957.0,97956.0,0.05540695]
[1738734710668,0.0001068,97957.0,97956.0,0.30779201]
[1738734712786,0.0001068,97957.0,97956.0,0.3179841]
[1738734720186,0.0001068,97957.0,97956.0,1.36111213]
[1738734720966,0.0001068,97957.0,97956.0,1.3153761]
[1738734721718,0.0001068,97957.0,97956.0,0.3179841]
[1738734725527,0.0001068,97957.0,97956.0,0.05540695]
[1738734725720,0.0801068,97957.0,97956.0,0.05540695]
[1738734727515,0.0801068,97957.0,97956.0,0.02480549]
[1738734727735,0.0001068,97957.0,97956.0,0.12719055]
[1738734728299,0.0001068,97957.0,97956.0,0.27719055]
[1738734731135,0.0001068,97957.0,97956.0,0.69227155]
[1738734731553,8e-07,97957.0,97956.0,0.7227679]
[1738734731760,8e-07,97957.0,97956.0,0.3076869]
[1738734733400,0.31642245,97989.0,97961.0,0.272497]
[1738734733602,0.0146944,97994.0,97961.0,3.23823906]
[1738734733603,8e-07,97962.0,97961.0,3.23823906]
[1738734733954,8e-07,97962.0,97961.0,0.50459763]
[1738734734165,8e-07,97962.0,97961.0,0.5355118]
[1738734734990,8e-07,97962.0,97961.0,0.58513178]
[1738734736821,8e-07,97962.0,97961.0,0.59325178]
[1738734740520,8e-07,97998.0,97997.0,0.122452]
[1738734740722,8e-07,97998.0,97997.0,0.40582498]
[1738734740858,0.0586415,98033.0,98032.0,0.122409]
[1738734741271,0.0586415,98033.0,98032.0,0.27892787]
[1738734741744,0.10741275,98070.0,98033.0,0.15]
[1738734741949,0.09738506,98069.0,98042.0,0.122395]
[1738734742169,0.122372,98061.0,98047.0,0.12239]
[1738734742367,0.023,98059.0,98043.0,0.00651737]
[1738734742721,0.122376,98058.0,98048.0,0.04961998]
[1738734742918,0.19349299,98058.0,98048.0,0.04961998]
[1738734743118,0.023,98057.0,98049.0,0.00650425]
[1738734743529,0.19349299,98058.0,98049.0,0.00650425]
[1738734743530,0.09110793,98058.0,98057.0,0.122377]
[1738734743925,0.09110793,98058.0,98057.0,0.12886192]
[1738734744305,0.09110793,98058.0,98057.0,0.14798555]
[1738734745127,0.09110793,98058.0,98057.0,0.29798555]
[1738734745321,0.09110793,98058.0,98057.0,0.40037061]
[1738734745711,0.09110793,98058.0,98057.0,0.43086696]
[1738734748691,0.079,98093.0,98091.0,0.122335]
[1738734749141,0.079,98093.0,98091.0,0.12879994]
[1738734749512,0.0466,98099.0,98091.0,0.12879994]
[1738734750309,0.0466,98099.0,98091.0,0.17841992]
[1738734750927,0.0774,98103.0,98091.0,0.17841992]
[1738734751811,0.0776,98109.0,98091.0,0.17841992]
[1738734752864,0.023,98108.0,98096.0,0.122329]
[1738734753066,0.0776,98109.0,98097.0,0.122327]
[1738734753272,0.0776,98109.0,98097.0,0.00642831]
[1738734753683,0.0776,98109.0,98103.0,0.12232]
[1738734753844,0.0776,98109.0,98098.0,0.00642831]
[1738734754041,0.0776,98109.0,98104.0,0.05604367]
[1738734754247,0.0776,98109.0,98107.0,0.122314]
[1738734754443,0.0776,98109.0,98107.0,0.122315]
[1738734754685,0.0776,98109.0,98108.0,0.0064206]
[1738734755312,0.0776,98109.0,98108.0,0.05604058]
[1738734755639,0.0776,98109.0,98108.0,0.05539852]
[1738734756732,0.0484,98113.0,98108.0,0.05539852]
[1738734757760,0.0001067,98109.0,98108.0,0.05539852]
[1738734760537,0.0001067,98109.0,98108.0,0.30778358]
[1738734760744,4e-05,98150.0,98108.0,0.30778358]
[1738734760745,0.0491,98133.0,98108.0,0.15778358]
[1738734761062,0.0491,98133.0,98128.0,0.122288]
[1738734761177,0.0491,98133.0,98109.0,0.10238506]
[1738734761379,0.0491,98133.0,98129.0,0.00577229]
[1738734761582,0.0491,98133.0,98110.0,0.163082]
[1738734761804,0.0491,98133.0,98130.0,0.0057716]
[1738734762010,0.0491,98133.0,98123.0,0.122295]
[1738734762204,0.0491,98133.0,98131.0,0.0057709]
[1738734762411,0.0491,98133.0,98125.0,0.122292]
[1738734762613,0.0491,98133.0,98131.0,0.0057709]
[1738734762884,0.0491,98133.0,98131.0,0.01912363]
[1738734763249,0.0491,98145.0,98131.0,0.02489453]
[1738734763450,0.023,98144.0,98131.0,0.02489453]
[1738734763671,0.122276,98139.0,98131.0,0.02489453]
[1738734764040,0.023,98139.0,98131.0,0.02489453]
[1738734764209,0.122283,98133.0,98131.0,0.05500054]
[1738734764424,0.023,98139.0,98131.0,0.04922964]
[1738734764576,0.122282,98134.0,98131.0,0.05499518]
[1738734764788,0.186035,98139.0,98131.0,0.05499518]
[1738734765007,0.122281,98135.0,98131.0,0.05499518]
[1738734765368,0.0231068,98132.0,98131.0,0.05499518]
[1738734765565,0.0231068,98132.0,98131.0,0.04922964]
[1738734765977,0.0001068,98132.0,98131.0,0.04922964]
[1738734766173,0.0001068,98132.0,98131.0,0.0556358]
[1738734774428,0.0001068,98132.0,98131.0,0.02552979]
[1738734776861,0.0001068,98132.0,98131.0,0.00640616]
[1738734777373,0.0694,98129.0,98105.0,0.08190721]
[1738734777572,0.122295,98124.0,98115.0,0.08190721]
[1738734777804,0.023,98128.0,98115.0,0.08190721]
[1738734778007,0.12229,98127.0,98115.0,0.08190721]
[1738734778204,0.122292,98126.0,98115.0,0.08190721]
[1738734778380,0.122293,98125.0,98115.0,0.08190721]
[1738734778576,0.04301488,98126.0,98108.0,0.163084]
[1738734778799,0.023,98124.0,98110.0,0.163081]
[1738734779044,0.023,98124.0,98105.0,0.08190721]
[1738734779045,0.1223,98120.0,98108.0,0.122313]
[1738734779265,0.145297,98122.0,98105.0,0.08190721]
[1738734779469,0.145297,98122.0,98110.0,0.12231]
[1738734779665,0.023,98122.0,98110.0,0.12231]
[1738734779872,0.023,98120.0,98110.0,0.12231]
[1738734780323,0.122298,98121.0,98105.0,0.08190721]
[1738734780324,0.023,98122.0,98105.0,0.08190721]
[1738734780493,0.0464,98129.0,98109.0,0.00022386]
[1738734780494,0.023,98116.0,98109.0,0.00022386]
[1738734780809,0.0786,98121.0,98109.0,0.00022386]
[1738734781008,0.0786,98128.0,98124.0,0.122293]
[1738734781205,0.0786,98128.0,98124.0,0.122294]
[1738734781343,0.023,98127.0,98110.0,1.0]
[1738734781548,0.023,98127.0,98125.0,0.122292]
[1738734781750,0.023,98127.0,98122.0,0.122296]
[1738734782177,0.0786,98128.0,98123.0,0.00641453]
[1738734782379,0.163055,98126.0,98115.0,0.122304]
[1738734782584,0.023,98124.0,98111.0,0.08190721]
[1738734782816,0.24767906,98124.0,98116.0,0.122303]
[1738734783048,0.023,98122.0,98114.0,0.122306]
[1738734783271,0.023,98120.0,98110.0,1.122311]
[1738734783472,0.023,98116.0,98110.0,1.0]
[1738734783708,0.023,98116.0,98110.0,1.122311]
[1738734783875,0.023,98119.0,98111.0,0.122309]
[1738734784316,0.023,98123.0,98116.0,0.122303]
[1738734784517,0.023,98119.0,98110.0,1.0]
[1738734785063,0.023,98119.0,98112.0,0.122308]
[1738734785445,0.5326,98119.0,98112.0,0.122308]
[1738734785842,0.5326,98119.0,98115.0,0.122304]
[1738734786047,0.5326,98119.0,98114.0,0.122306]
[1738734786182,0.5326,98119.0,98110.0,1.0]
[1738734787221,0.5326,98119.0,98112.0,0.122307]
[1738734787625,0.5326,98119.0,98110.0,1.0]
[1738734787830,0.5326,98119.0,98117.0,0.122302]
[1738734788005,0.5326,98119.0,98118.0,0.00641176]
[1738734788217,0.5096,98119.0,98118.0,0.00641176]
[1738734788460,0.5096,98119.0,98118.0,0.10238506]
[1738734788461,0.5094589,98119.0,98118.0,0.10238506]
[1738734788666,0.5094589,98119.0,98118.0,0.19089682]
[1738734791647,0.5094589,98119.0,98118.0,0.34089682]
[1738734793374,0.4075439,98119.0,98118.0,1.32948882]
[1738734793576,0.4075439,98119.0,98118.0,1.37708882]
[1738734794445,0.3667779,98119.0,98118.0,1.37708882]
[1738734794667,0.3056289,98119.0,98118.0,1.37708882]
[1738734795026,4e-05,98150.0,98119.0,0.1233]
[1738734795238,2e-07,98132.0,98131.0,0.49797006]
[1738734795439,2e-07,98132.0,98131.0,0.51433554]
[1738734795681,4e-05,98150.0,98146.0,0.349666]
[1738734795872,4e-05,98150.0,98146.0,0.4584164]
[1738734796319,2e-07,98147.0,98146.0,1.8019484]
[1738734796603,2e-07,98147.0,98146.0,0.5038164]
[1738734796848,2e-07,98150.0,98149.0,0.272263]
[1738734797080,2e-07,98150.0,98149.0,0.38099756]
[1738734797291,0.0001068,98191.0,98176.0,0.272229]
[1738734797493,0.0001068,98191.0,98177.0,0.15]
[1738734797695,0.0001068,98191.0,98188.0,0.122214]
[1738734798189,0.0001068,98191.0,98188.0,0.00632954]
[1738734798563,0.0001068,98191.0,98187.0,0.122215]
[1738734798791,0.0376944,98189.0,98188.0,0.00632795]
[1738734798993,0.34249246,98189.0,98188.0,0.00632795]
[1738734799150,0.0948944,98189.0,98171.0,0.08190721]
[1738734799355,0.122219,98184.0,98172.0,0.162979]
[1738734799544,0.023,98183.0,98176.0,0.122229]
[1738734799739,0.12222,98183.0,98174.0,0.12223]
[1738734799943,0.023,98182.0,98177.0,0.00634349]
[1738734800163,0.0948944,98189.0,98171.0,0.08190721]
[1738734800366,0.0146944,98189.0,98188.0,0.272214]
[1738734800570,0.0146944,98189.0,98188.0,0.37459906]
[1738734800772,0.0146944,98189.0,98188.0,0.27854508]
[1738734801807,0.0146944,98189.0,98188.0,0.00633108]
[1738734802053,0.0146944,98189.0,98172.0,0.162979]
[1738734802254,0.023,98187.0,98171.0,0.08190721]
[1738734802460,0.023,98187.0,98172.0,0.162979]
[1738734802680,0.023,98187.0,98185.0,0.122217]
[1738734802884,0.0751,98188.0,98171.0,0.08190721]
[1738734803061,0.0146944,98189.0,98187.0,0.122215]
[1738734803807,0.0096944,98189.0,98187.0,0.122215]
[1738734804481,0.009801,98189.0,98187.0,0.122215]
[1738734805307,0.009801,98189.0,98188.0,0.122214]
[1738734809448,0.009801,98189.0,98188.0,0.37582119]
[1738734809642,0.009801,98189.0,98188.0,0.37459906]
[1738734811666,0.009801,98189.0,98188.0,0.38092398]
[1738734812396,0.009801,98189.0,98188.0,1.38092398]
[1738734813847,8e-07,98191.0,98190.0,0.122212]
[1738734814046,8e-07,98191.0,98190.0,0.37581877]
[1738734814246,8e-07,98191.0,98190.0,0.38089923]
[1738734815328,8e-07,98191.0,98190.0,0.41572013]
[1738734815680,8e-07,98191.0,98190.0,0.38089923]
[1738734818757,8e-07,98191.0,98190.0,0.45939923]
[1738734818958,8e-07,98191.0,98190.0,0.47540737]
[1738734819138,8e-07,98191.0,98190.0,0.51022827]
[1738734822688,8e-07,98191.0,98190.0,0.47540737]
[1738734822894,8e-07,98191.0,98190.0,0.45939923]
[1738734823873,8e-07,98191.0,98190.0,0.48435791]
[1738734824689,8e-07,98191.0,98190.0,0.51917881]
[1738734825150,8e-07,98191.0,98190.0,0.53957414]
[1738734827434,8e-07,98191.0,98190.0,0.50475324]
[1738734828080,8e-07,98191.0,98190.0,0.47979456]
[1738734828522,8e-07,98191.0,98190.0,0.50323641]
[1738734829179,8e-07,98191.0,98190.0,0.47979456]
[1738734829388,8e-07,98191.0,98190.0,0.38089923]
[1738734836136,8e-07,98191.0,98190.0,0.27851417]
[1738734837755,8e-07,98191.0,98190.0,0.38089923]
[1738734841928,8e-07,98191.0,98190.0,0.39984111]
[1738734842534,8e-07,98191.0,98190.0,0.48244111]
[1738734842740,0.0812,98224.0,98190.0,0.48244111]
[1738734842741,8e-07,98196.0,98195.0,0.272205]
[1738734842963,8e-07,98196.0,98195.0,0.60669006]
[1738734843163,8e-07,98196.0,98195.0,0.61298531]
[1738734843781,0.0812,98233.0,98207.0,0.27219]
[1738734844117,0.0812,98233.0,98207.0,0.37457506]
[1738734844441,0.0812,98233.0,98207.0,0.3808684]
[1738734844664,7e-07,98208.0,98207.0,1.08924413]
[1738734844865,7e-07,98208.0,98207.0,0.50690513]
[1738734845082,7e-07,98208.0,98207.0,0.53772213]
[1738734845859,4e-07,98219.0,98218.0,0.272177]
[1738734846084,4e-07,98219.0,98218.0,0.58897906]
[1738734846290,4e-07,98219.0,98218.0,0.59410401]
[1738734846491,0.0751,98260.0,98240.0,0.272149]
[1738734846699,0.0751,98260.0,98240.0,0.37453406]
[1738734846896,0.0751,98260.0,98240.0,0.38012796]
[1738734847524,0.0751,98260.0,98240.0,0.42936469]
[1738734848112,0.023,98263.0,98259.0,0.122126]
[1738734848313,0.0128925,98265.0,98242.0,0.162863]
[1738734848552,0.023,98263.0,98244.0,0.162859]
[1738734848705,0.10238506,98262.0,98243.0,0.00555648]
[1738734848900,0.10238506,98262.0,98245.0,0.04923673]
[1738734849158,0.162831,98261.0,98246.0,0.00555233]
[1738734849313,0.162837,98258.0,98246.0,0.00555233]
[1738734849515,0.0128925,98265.0,98245.0,0.04923673]
[1738734849718,0.0128925,98265.0,98255.0,0.122131]
[1738734849916,0.0128925,98265.0,98256.0,0.00554749]
[1738734850464,0.0128925,98265.0,98251.0,0.122136]
[1738734850465,0.12212,98264.0,98251.0,0.122136]
[1738734850798,0.023,98263.0,98251.0,0.122136]
[1738734850977,0.023,98263.0,98252.0,0.00554957]
[1738734850978,0.122122,98262.0,98252.0,0.00554957]
[1738734851183,0.122124,98260.0,98252.0,0.00554957]
[1738734851383,0.244924,98261.0,98247.0,0.08190721]
[1738734851526,0.122126,98259.0,98253.0,0.00554611]
[1738734851731,0.122126,98259.0,98247.0,0.08190721]
[1738734851926,0.122126,98259.0,98248.0,0.00554887]
[1738734852140,0.023,98260.0,98248.0,0.12768787]
[1738734852796,0.023,98260.0,98250.0,0.122136]
[1738734853154,0.023,98260.0,98251.0,0.00554749]
[1738734854092,0.122128,98257.0,98251.0,0.00554749]
[1738734854292,0.162838,98257.0,98241.0,0.122148]
[1738734854444,0.122135,98252.0,98239.0,0.122151]
[1738734854664,0.122135,98252.0,98242.0,0.00555164]
[1738734854830,0.122139,98248.0,98240.0,0.00554957]
[1738734855027,0.023,98257.0,98243.0,0.00554749]
[1738734855235,0.122136,98252.0,98238.0,0.122151]
[1738734855434,0.122138,98250.0,98238.0,0.122151]
[1738734855648,0.122138,98250.0,98239.0,0.00555083]
[1738734856021,0.122144,98245.0,98232.0,0.162878]
[1738734856229,0.122143,98245.0,98234.0,0.122157]
[1738734856561,0.162849,98250.0,98234.0,0.122157]
[1738734856562,0.21378426,98244.0,98234.0,0.00554944]
[1738734856768,0.122152,98238.0,98234.0,0.00554944]
[1738734856980,0.122164,98229.0,98212.0,0.162911]
[1738734857223,0.10238506,98228.0,98216.0,0.08190721]
[1738734857427,0.0809,98236.0,98216.0,0.08190721]
[1738734857633,0.10238506,98235.0,98217.0,0.00556101]
[1738734857837,0.122162,98230.0,98218.0,0.122177]
[1738734857988,0.122162,98230.0,98220.0,0.122174]
[1738734858196,0.10238506,98235.0,98220.0,0.122174]
[1738734858197,0.122159,98232.0,98220.0,0.122174]
[1738734858521,0.22454406,98232.0,98222.0,0.122172]
[1738734858721,0.10238506,98232.0,98222.0,0.122172]
[1738734858931,0.22454506,98232.0,98222.0,0.122172]
[1738734859129,0.10238506,98232.0,98223.0,0.00556524]
[1738734859362,0.10238506,98232.0,98220.0,0.162899]
[1738734859571,0.10238506,98232.0,98225.0,0.122168]
[1738734859772,0.0798,98245.0,98221.0,0.00556662]
[1738734859981,0.0798,98245.0,98226.0,0.00556316]
[1738734860095,0.18218506,98245.0,98237.0,0.122153]
[1738734860296,0.18218506,98245.0,98238.0,0.00556385]
[1738734860543,0.18218506,98245.0,98233.0,0.162876]
[1738734860748,0.18218506,98245.0,98236.0,0.122154]
[1738734860988,0.18218506,98245.0,98238.0,0.122151]
[1738734861306,0.18218506,98245.0,98239.0,0.00556588]
[1738734861774,0.0798,98245.0,98232.0,0.162879]
[1738734861979,0.122134,98253.0,98242.0,0.122146]
[1738734862176,0.10238506,98252.0,98231.0,0.08190721]
[1738734862396,0.122136,98251.0,98243.0,0.0061491]
[1738734862570,0.10238506,98250.0,98240.0,0.122148]
[1738734862770,0.122138,98249.0,98241.0,0.00614833]
[1738734862993,0.10238506,98248.0,98237.0,0.122152]
[1738734863156,0.122141,98247.0,98232.0,0.162879]
[1738734863358,0.122143,98246.0,98236.0,0.122153]
[1738734863574,0.631063,98246.0,98237.0,0.00614833]
[1738734864088,0.631063,98246.0,98236.0,0.122153]
[1738734864089,0.631063,98246.0,98239.0,0.00022428]
[1738734864881,0.50892,98246.0,98239.0,0.00022428]
[1738734865932,0.631062,98246.0,98239.0,0.00022428]
[1738734866064,0.122145,98244.0,98239.0,0.00022428]
[1738734866276,0.122146,98243.0,98239.0,0.00022428]
[1738734866471,0.50892,98243.0,98239.0,0.00022428]
[1738734866670,0.122149,98240.0,98239.0,0.00022428]
[1738734867049,0.631069,98240.0,98239.0,0.00022428]
[1738734867245,0.73345406,98240.0,98239.0,0.00022428]
[1738734867634,0.91273568,98240.0,98239.0,0.00022428]
[1738734867840,0.88155406,98240.0,98239.0,0.00022428]
[1738734868053,0.89155406,98240.0,98239.0,0.00022428]
[1738734868899,0.88155406,98240.0,98239.0,0.00022428]
[1738734869300,0.73640506,98240.0,98239.0,0.00022428]
[1738734870606,0.73640506,98240.0,98239.0,0.12237528]
[1738734870607,0.50892,98240.0,98239.0,0.12237528]
[1738734870971,0.50892,98240.0,98239.0,0.1282148]
[1738734871326,0.50892,98240.0,98239.0,0.0060638]
[1738734871740,0.50892,98240.0,98239.0,0.00022428]
[1738734872150,0.50892,98240.0,98239.0,0.1282148]
[1738734872699,0.50892,98240.0,98239.0,0.0060638]
[1738734872901,0.50892,98240.0,98239.0,0.00022428]
[1738734873299,0.50892,98240.0,98239.0,0.12237528]
[1738734873523,0.50892,98240.0,98239.0,0.12820635]
[1738734880036,0.50892,98240.0,98239.0,0.00605535]
[1738734882368,0.5883122,98240.0,98239.0,0.00022428]
[1738734882569,0.50892,98240.0,98239.0,0.00022428]
[1738734882974,0.61130506,98240.0,98239.0,0.00022428]
[1738734886048,0.50892,98240.0,98239.0,0.00022428]
[1738734890315,0.50892,98240.0,97563.0,0.0070986]
[1738734890316,0.122173,98221.0,98212.0,0.122183]
[1738734890488,0.122184,98212.0,98211.0,0.08190721]
[1738734890691,0.631104,98212.0,98211.0,0.08190721]
[1738734890890,0.631104,98212.0,98200.0,0.08190721]
[1738734890891,0.50892,98212.0,98200.0,0.08190721]
[1738734891090,0.50892,98212.0,98210.0,0.122186]
[1738734891271,0.50892,98212.0,98209.0,0.122187]
[1738734891470,0.50892,98212.0,98191.0,0.00122189]
[1738734891672,0.50892,98212.0,98207.0,0.12219]
[1738734891897,0.50892,98212.0,98192.0,0.10238506]
[1738734892055,0.50892,98212.0,98193.0,0.1641659]
[1738734892266,0.50892,98212.0,98211.0,0.122185]
[1738734892522,0.50892,98212.0,98209.0,0.122187]
[1738734892720,0.50892,98212.0,98210.0,0.122186]
[1738734894230,0.008919,98212.0,98210.0,0.122186]
[1738734895457,0.008919,98212.0,98211.0,0.18228506]
[1738734897346,0.008919,98212.0,98211.0,0.18350676]
[1738734897548,0.008919,98212.0,98211.0,0.18228506]
[1738734898553,0.008919,98212.0,98211.0,0.18350675]
[1738734898754,0.008919,98212.0,98211.0,0.18228506]
[1738734899409,0.008919,98212.0,98211.0,0.18250934]
[1738734900557,0.008919,98212.0,98211.0,0.20143318]
[1738734901691,0.008919,98212.0,98211.0,0.23171039]
[1738734901901,0.008919,98212.0,98211.0,0.23722283]
[1738734903853,0.008919,98212.0,98211.0,0.38722283]
[1738734904055,0.0001068,98260.0,98259.0,0.122126]
[1738734904434,0.0001068,98260.0,98259.0,0.1276296]
[1738734904836,0.0001068,98260.0,98259.0,0.38001466]
[1738734905039,0.0001068,98260.0,98259.0,0.41029187]
[1738734905245,0.0001068,98260.0,98259.0,0.42921571]
[1738734906385,0.0001068,98260.0,98259.0,0.27921571]
[1738734906543,0.0128925,98265.0,98264.0,0.12212]
[1738734906544,0.0123993,98265.0,98264.0,0.12212]
[1738734906741,0.0123993,98265.0,98264.0,0.12658656]
[1738734907371,0.0058993,98265.0,98264.0,0.12658656]
[1738734908167,0.0058993,98265.0,98264.0,0.05366761]
[1738734908636,0.07467316,98292.0,98291.0,0.122086]
[1738734908777,0.10767316,98292.0,98291.0,0.122086]
[1738734908999,0.07467316,98292.0,98291.0,0.00439396]
[1738734909196,0.07467316,98292.0,98273.0,0.18402098]